Cogmind - Beta 9.6 @@@ ROGUE MODE // 2020.07.28 @ 02:34:16 // Winter2019/RPGLIKE Player: FontPeg Result: Destroyed by Y-54 Guardian with Gatling Laser Performance ------------- Evolutions (4) 2000 Regions Visited (7) 1400 Robots Destroyed (54) 270 Value Destroyed (1847) 1847 Prototype IDs (6) 120 Alien Tech Used (0) 0 Bonus (274) 274 TOTAL SCORE: 5911 Bonus ------- High Alert Combat Kills 280 Follower Combat Kills 228 Friendly Fire -234 Cogmind --------- Core Integrity 0/1000 Matter 270/400 Energy 314/315 System Corruption 0% Temperature Cool (6) Movement Hovering (52) Location -6/Factory Parts ------- > --- POWER (1) -------- Improved Ion Engine > --- PROPULSION (3) --- Improved Hover Unit Improved Hover Unit Improved Hover Unit > --- UTILITY (4) ------ Experimental Sensor Array Advanced Signal Interpreter Hacking Suite Component Analysis Suite > --- WEAPON (2) ------- Precision Grenade Launcher Chainsword > --- INVENTORY (4) ---- Improved Light Armor Plating Advanced Beam Rifle Improved EM Pulse Cannon Gauss Rifle Peak State ------------ > --- POWER ------------ Improved Ion Engine > --- PROPULSION ------- Improved Hover Unit Improved Hover Unit Improved Hover Unit > --- UTILITY ---------- Experimental Sensor Array Advanced Signal Interpreter Hacking Suite Component Analysis Suite > --- WEAPON ----------- Precision Grenade Launcher Chainsword > --- INVENTORY -------- Improved Light Armor Plating Advanced Beam Rifle Improved EM Pulse Cannon Improved EM Pulse Cannon [Rating: 34] Favorites ----------- Power Improved Ion Engine Engine Improved Ion Engine Propulsion Wheel Wheel Wheel Hover Unit Improved Hover Unit Utility Experimental Sensor Array Device Experimental Sensor Array Processor Signal Interpreter Hackware Hacking Suite Protection Medium Armor Plating Weapon Grenade Launcher Energy Gun Medium Laser Energy Cannon Advanced Beam Cannon Launcher Grenade Launcher Slashing Weapon Chainsword Build | -11 -10 -10 -9 -9 -8 -7 -6 ------- Run | Scr Mat Min Mat Min Mat Fac Fac Slots Evolved 6 | 3 . . 1 . 1 1 . Power . | . . . . . . . . Propulsion 2 | . . . 1 . 1 . . Utility 3 | 2 . . . . . 1 . Weapon 1 | 1 . . . . . . . Parts Attached 29 | 4 1 2 8 . 6 8 . Power 4 | 1 . . 3 . . . . Engine 4 | 1 . . 3 . . . . Core . | . . . . . . . . Reactor . | . . . . . . . . Propulsion 6 | 1 . . 1 . . 4 . Treads . | . . . . . . . . Leg . | . . . . . . . . Wheel 3 | 1 . . 1 . . 1 . Hover 3 | . . . . . . 3 . Flight . | . . . . . . . . Utility 6 | . . 2 1 . 1 2 . Device 2 | . . 1 . . . 1 . Storage . | . . . . . . . . Processor 2 | . . 1 . . . 1 . Hackware 1 | . . . . . 1 . . Protection 1 | . . . 1 . . . . Artifact . | . . . . . . . . Weapon 13 | 2 1 . 3 . 5 2 . Energy Gun 6 | 2 . . 2 . 1 1 . Energy Cannon 2 | . . . 1 . 1 . . Ballistic Gun . | . . . . . . . . Ballistic Cannon . | . . . . . . . . Launcher 4 | . 1 . . . 2 1 . Special Weapon . | . . . . . . . . Impact Weapon . | . . . . . . . . Slashing Weapon 1 | . . . . . 1 . . Piercing Weapon . | . . . . . . . . Special Melee Weapon . | . . . . . . . . Unidentified Prototypes 6 | . . 1 2 . 1 2 . Parts Lost 1 | . . . . . 1 . . Power . | . . . . . . . . Propulsion . | . . . . . . . . Utility . | . . . . . . . . Weapon 1 | . . . . . 1 . . Highest Loss Streak 1 | . . . . . 1 . . Average Slot Usage (%) 82 | . 57 65 91 100 87 97 100 Engine 11 | . 14 14 10 12 11 10 10 Wheel 17 | . 14 14 18 25 22 19 . Hover 2 | . . . . . . 10 30 Device 10 | . . 4 12 12 11 16 20 Processor 8 | . . 3 12 12 11 10 10 Hackware 4 | . . . . . 7 10 10 Protection 2 | . . . 11 12 3 . . Energy Gun 11 | . 28 14 16 12 5 5 . Energy Cannon 2 | . . . 4 12 4 . . Launcher 7 | . . 14 3 . 8 4 10 Slashing Weapon 2 | . . . . . 1 10 10 Naked Turns . | . . . . . . . . Heaviest Build 22 | 9 10 11 22 22 22 18 18 Greatest Support 41 | 10 10 10 31 31 31 41 29 Greatest Overweight (x) 2 | 2 . 1 1 . . 1 . Average Overweight (x) . | . . . . . . . . Largest Inventory Capacity 4 | 1 1 1 3 3 4 4 4 Average Capacity 2 | . 1 1 2 3 3 4 4 Most Carried 4 | 1 1 1 3 2 4 4 4 Average Carried 2 | . . 1 1 1 2 3 4 Final Capacity 4 | 1 1 1 3 3 4 4 4 Final Carried 4 | 1 1 1 2 2 4 4 4 Class Distribution -------------------- 34% | Mutant 25% | Commander-Mutant 18% | Hacker-Mutant 11% | Hacker-Assassin 9% | Hacker-Scout Dominant Class ---------------- Mutant | -10/Materials Commander-Mutant | -10/Mines Commander-Mutant | -9/Materials Mutant | -9/Mines Hacker-Mutant | -8/Materials Hacker-Assassin | -7/Factory Hacker-Scout | -6/Factory Resources | -11 -10 -10 -9 -9 -8 -7 -6 ----------- Run | Scr Mat Min Mat Min Mat Fac Fac Matter Collected 995 | 240 . 70 100 . 505 80 . Remotely . | . . . . . . . . Salvage Created 1506 | . 49 112 197 . 677 471 . Parts 99 | . 8 10 6 . 48 27 . Haulers Intercepted 5 | . 1 . 1 . 1 2 . Recyclers Shooed 3 | . . . 1 . 2 . . Parts Field Recycled . | . . . . . . . . Retrieved Matter . | . . . . . . . . Parts Self-Destructed . | . . . . . . . . Prevented . | . . . . . . . . Kills | -11 -10 -10 -9 -9 -8 -7 -6 ------- Run | Scr Mat Min Mat Min Mat Fac Fac Combat Hostiles Destroyed 39 | . 1 5 1 1 21 10 . Melee 4 | . . . . . 1 3 . Guns 5 | . 1 1 . . 3 . . Cannons 8 | . . . . 1 7 . . AOE 21 | . . 4 . . 10 7 . Classes Destroyed 13 | . 2 1 2 . 7 1 . Worker 2 | . . . . . 1 1 . Builder 3 | . . . . . 3 . . Hauler 5 | . 1 . 1 . 1 2 . Recycler 1 | . . . 1 . . . . Watcher 3 | . . . . . 2 1 . Swarmer 5 | . . 3 . . 2 . . Grunt 23 | . 1 2 . 1 12 7 . Brawler 2 | . . . . . 2 . . Duelist 1 | . . . . . 1 . . Protector 1 | . . . . . 1 . . Sentry 6 | . . . 1 . 3 2 . Demolisher 1 | . . . . . 1 . . Programmer 1 | . . . . . . 1 . Best Kill Streak 9 | . 1 3 1 1 8 9 . Combat Bots Only 8 | . 1 3 1 1 8 8 . Max Kills in Single Turn 3 | . 1 2 1 1 3 2 . Gunslinging . | . . . . . . . . Exploded 2 | . . 2 . . 2 2 . Melee 1 | . . . . . 1 1 . Uniques/NPCs Destroyed . | . . . . . . . . Combat | -11 -10 -10 -9 -9 -8 -7 -6 -------- Run | Scr Mat Min Mat Min Mat Fac Fac Damage Taken 2225 | . 20 123 56 10 1119 888 9 Core 1819 | . 15 100 31 4 919 743 7 Absorbed by Shields . | . . . . . . . . Redirected to Core 1267 | . 15 83 31 4 664 463 7 Core Remaining (%) 71 | 100 . 82 . 100 74 . . Volleys Fired 74 | . 7 6 11 3 37 10 . Largest 2 | . 2 2 2 2 2 1 . Hottest 131 | . 90 80 131 131 131 36 . Shots Fired 135 | . 14 12 22 6 71 10 . Gun 56 | . 14 6 18 3 15 . . Cannon 28 | . . . 4 3 21 . . Launcher 51 | . . 6 . . 35 10 . Special . | . . . . . . . . Kinetic . | . . . . . . . . Thermal 77 | . 7 6 22 6 36 . . Explosive 51 | . . 6 . . 35 10 . Electromagnetic 7 | . 7 . . . . . . Robot Hit Streak 14 | . 3 9 7 3 14 5 . Robot Miss Streak 5 | . 2 2 5 3 2 1 . Penetration Max . | . . . . . . . . Secondary Targets . | . . . . . . . . Shots Hit Robots 107 | . 8 8 14 3 49 23 2 Core Hits 106 | . 4 8 3 1 65 25 . Critical Hits 6 | . . . . 1 3 1 1 Critical Kills 4 | . . . . 1 3 . . Critical Parts Destroyed 2 | . . . . . . 1 1 Melee Attacks 19 | . . . . . 2 15 2 Impact . | . . . . . . . . Slashing 19 | . . . . . 2 15 2 Piercing . | . . . . . . . . Sneak Attacks 3 | . . . . . . 2 1 Combat Hostiles 1 | . . . . . . . 1 Follow-up Attacks . | . . . . . . . . Damage Inflicted 5233 | . 137 288 326 38 2444 1830 170 Guns 699 | . 137 62 242 18 240 . . Cannons 420 | . . . 83 20 317 . . Explosions 3185 | . . 226 . . 1819 1140 . Melee 928 | . . . . . 68 690 170 Ramming 1 | . . . 1 . . . . Kinetic . | . . . . . . . . Thermal 1043 | . 61 62 325 38 557 . . Explosive 3185 | . . 226 . . 1819 1140 . Electromagnetic 76 | . 76 . . . . . . Impact . | . . . . . . . . Slashing 928 | . . . . . 68 690 170 Piercing . | . . . . . . . . Highest Corruption 1 | . . . . . . 1 . Average Corruption 1 | . . . . . . 1 . Corruption Purged . | . . . . . . . . Overload Shots . | . . . . . . . . Overflow Damage 128 | . . . . . 16 112 . Projectiles 4 | . . . . . 4 . . Explosions 115 | . . . . . 9 106 . Melee 9 | . . . . . 3 6 . Knockbacks . | . . . . . . . . Impact . | . . . . . . . . Kinetic . | . . . . . . . . Secondary . | . . . . . . . . Self-Inflicted Damage 402 | . . 30 . . 230 142 . Shots 16 | . . 1 . . 6 9 . Rammed 1 | . . . 1 . . . . Targets Rammed 1 | . . . 1 . . . . Kicked . | . . . . . . . . Crushed . | . . . . . . . . Highest Temperature 232 | . 96 81 232 . 5 . . Average Temperature 70 | . 41 36 111 . 4 . . Received Heat Transfer 645 | . 12 33 18 6 378 192 6 Siege Activations . | . . . . . . . . Robots Corrupted . | . . . . . . . . Combat Hostiles . | . . . . . . . . Parts Fried . | . . . . . . . . Impact Corruptions . | . . . . . . . . Robots Melted 1 | . . . 1 . . . . Combat Hostiles 1 | . . . 1 . . . . Parts Melted 6 | . . . 2 3 1 . . Heat Transferred 2166 | . 185 185 666 74 1056 . . Parts Sabotaged . | . . . . . . . . Parts Stolen . | . . . . . . . . Parts Stripped . | . . . . . . . . Power Chain Reactions . | . . . . . . . . Missiles Intercepted . | . . . . . . . . Alert | -11 -10 -10 -9 -9 -8 -7 -6 ------- Run | Scr Mat Min Mat Min Mat Fac Fac Peak Influence 730 | . 61 143 120 109 730 561 273 Average Influence 235 | . 17 93 50 73 474 366 254 Maximum Alert Level 3 | . . . . . 3 2 1 Low Security (%) 55 | 100 100 100 100 100 14 . . Level 1 19 | . . . . . 9 71 100 Level 2 24 | . . . . . 72 28 . Level 3 . | . . . . . 3 . . Level 4 . | . . . . . . . . Level 5 . | . . . . . . . . High Security . | . . . . . . . . Max Security . | . . . . . . . . Squads Dispatched 10 | . 1 . 1 . 3 5 . Investigation 2 | . . . . . . 2 . Extermination 1 | . . . . . . 1 . Reinforcement 5 | . 1 . 1 . 1 2 . Assault 1 | . . . . . 1 . . Garrison 1 | . . . . . 1 . . Intercept . | . . . . . . . . Construction Impeded 2 | . . . . . 1 1 . Haulers Reinforced . | . . . . . . . . Stealth | -11 -10 -10 -9 -9 -8 -7 -6 --------- Run | Scr Mat Min Mat Min Mat Fac Fac Distress Signals 5 | . 1 . 1 . 2 1 . Communications Jammed . | . . . . . . . . Distress Signals . | . . . . . . . . Times Spotted 65 | . 6 5 4 2 30 17 1 Peak Tracking Total 6 | . 4 3 2 2 6 6 1 Tactical Retreats 1 | . . . . . 1 . . Traps | -11 -10 -10 -9 -9 -8 -7 -6 ------- Run | Scr Mat Min Mat Min Mat Fac Fac Traps Triggered 3 | . . . . . . 3 . Indirectly . | . . . . . . . . Trap Hack Attempts . | . . . . . . . . Triggered . | . . . . . . . . Disarmed . | . . . . . . . . Reprogrammed . | . . . . . . . . Reused . | . . . . . . . . Traps Extracted . | . . . . . . . . Installed . | . . . . . . . . Triggered . | . . . . . . . . Machines | -11 -10 -10 -9 -9 -8 -7 -6 ---------- Run | Scr Mat Min Mat Min Mat Fac Fac Machines Disabled 6 | . 1 . . . 5 . . Max in Single Turn 2 | . 1 . . . 2 . . Garrison Access 1 | . . . . . 1 . . Machines Sabotaged . | . . . . . . . . Garrisons Compromised . | . . . . . . . . Overloaded Fab Kills . | . . . . . . . . Fab Network Shutdowns . | . . . . . . . . Hacking | -11 -10 -10 -9 -9 -8 -7 -6 --------- Run | Scr Mat Min Mat Min Mat Fac Fac Machines Accessed 9 | . 2 . . . 5 2 . Terminals 7 | . 2 . . . 4 1 . Fabricators 1 | . . . . . . 1 . Repair Stations . | . . . . . . . . Recycling Units . | . . . . . . . . Scanalyzers 1 | . . . . . 1 . . Garrison Access . | . . . . . . . . Total Hacks 33 | . 6 . . . 23 4 . Successful 24 | . 5 . . . 15 4 . Failed 9 | . 1 . . . 8 . . Catastrophic . | . . . . . . . . Database Lockouts . | . . . . . . . . Manual 23 | . 5 . . . 18 . . Terminals 26 | . 6 . . . 18 2 . Fabricators 2 | . . . . . . 2 . Repair Stations . | . . . . . . . . Recycling Units . | . . . . . . . . Scanalyzers 5 | . . . . . 5 . . Garrison Access . | . . . . . . . . Terminal Hacks 7 | . 1 . . . 4 2 . Level Access Points 2 | . . . . . 1 1 . Terminal Index 2 | . 1 . . . 1 . . Scanalyzer Index 1 | . . . . . . 1 . Unreport Threat 2 | . . . . . 2 . . Fabricator Hacks 2 | . . . . . . 2 . Load Schematic 1 | . . . . . . 1 . Build 1 | . . . . . . 1 . Repair Station Hacks . | . . . . . . . . Recycling Unit Hacks . | . . . . . . . . Scanalyzer 5 | . . . . . 5 . . Insert Component 3 | . . . . . 3 . . Analyze 2 | . . . . . 2 . . Garrison Access Hacks . | . . . . . . . . Unauthorized Hacks 10 | . 4 . . . 6 . . Terminals 10 | . 4 . . . 6 . . Track 3 | . 1 . . . 2 . . Assimilate 1 | . 1 . . . . . . Botnet 6 | . 2 . . . 4 . . Fabricators . | . . . . . . . . Repair Stations . | . . . . . . . . Recycling Units . | . . . . . . . . Scanalyzers . | . . . . . . . . Garrison Access . | . . . . . . . . Data Cores Recovered . | . . . . . . . . Used . | . . . . . . . . Hacking Detections 8 | . 2 . . . 5 1 . Full Trace Events . | . . . . . . . . Feedback Events . | . . . . . . . . Feedback Blocked . | . . . . . . . . Robot Schematics Acquired . | . . . . . . . . Robots Built . | . . . . . . . . Matter . | . . . . . . . . Time . | . . . . . . . . Total Robot Build Rating . | . . . . . . . . Part Schematics Acquired 2 | . . . . . 2 . . Parts Built 2 | . . . . . . 2 . Matter 168 | . . . . . . 168 . Time 84 | . . . . . . 84 . Total Part Build Rating 8 | . . . . . . 8 . Parts Repaired . | . . . . . . . . Time . | . . . . . . . . Parts Recycled . | . . . . . . . . Recycled Matter . | . . . . . . . . Retrieved Matter . | . . . . . . . . Retrieved Components . | . . . . . . . . Parts Scanalyzed 2 | . . . . . 2 . . Part Schematics Acquired 2 | . . . . . 2 . . Parts Damaged . | . . . . . . . . Bothacking | -11 -10 -10 -9 -9 -8 -7 -6 ------------ Run | Scr Mat Min Mat Min Mat Fac Fac Used RIF Installer . | . . . . . . . . Robots Hacked . | . . . . . . . . Non-combat . | . . . . . . . . Combat . | . . . . . . . . Robot Hacks Applied . | . . . . . . . . Relay Couplers Released 2 | . . . . . 2 . . Machine Destruction 2 | . . . . . 2 . . Robots Rewired . | . . . . . . . . Allies Hacked . | . . . . . . . . Hacks Repelled . | . . . . . . . . Allies | -11 -10 -10 -9 -9 -8 -7 -6 -------- Run | Scr Mat Min Mat Min Mat Fac Fac Total Allies 5 | . 1 4 . . . . . Largest Group 5 | . 1 5 5 4 4 . . Highest-Rated Group 80 | . 10 80 80 71 71 . . Highest-Rated Ally 31 | . 10 31 31 31 31 . . Total Orders . | . . . . . . . . Ally Attacks 57 | . . . 22 10 25 . . Total Damage 704 | . . . 245 125 334 . . Kills 8 | . . . 2 1 5 . . Allies Corrupted . | . . . . . . . . Allies Melted . | . . . . . . . . Intel | -11 -10 -10 -9 -9 -8 -7 -6 ------- Run | Scr Mat Min Mat Min Mat Fac Fac Robot Analysis Total . | . . . . . . . . Derelict Logs Recovered . | . . . . . . . . Drone Launches . | . . . . . . . . Drone Recoveries . | . . . . . . . . Exploration | -11 -10 -10 -9 -9 -8 -7 -6 ------------- Run | Scr Mat Min Mat Min Mat Fac Fac Turns Passed 2040 | 44 173 517 218 109 513 433 33 Spaces Moved 1780 | 45 132 531 166 81 366 419 40 Core 6 | 6 . . . . . . . Treads . | . . . . . . . . Legs . | . . . . . . . . Wheels 1560 | 39 132 531 166 81 366 245 . Hover 214 | . . . . . . 174 40 Flight . | . . . . . . . . Fastest Speed 50 | 50 80 80 80 90 90 52 52 Average Speed 82 | 80 80 83 88 90 90 73 52 Slowest Speed 150 | 150 80 90 90 90 90 125 52 Overloaded Moves . | . . . . . . . . Propulsion Burnouts . | . . . . . . . . Robots Hopped . | . . . . . . . . Cave-ins Triggered . | . . . . . . . . Exploration Rate (%) 27 | 3 41 88 15 15 44 14 1 Regions Visited 7 Branch Regions 2 Pre-discovered Areas 1 | . . . . 1 . . . Known Exits Taken 5 | . . 1 1 1 1 1 . Unknown Exits Taken 2 | 1 1 . . . . . . Scrap Searched 1 | . . 1 . . . . . Spaces Dug . | . . . . . . . . Terrain Destroyed 268 | . . 61 . . 186 21 . Melee . | . . . . . . . . Projectile 1 | . . . . . 1 . . AOE 267 | . . 61 . . 185 21 . Actions | -11 -10 -10 -9 -9 -8 -7 -6 --------- Run | Scr Mat Min Mat Min Mat Fac Fac Total 2190 | 51 185 592 215 111 475 510 51 Wait 202 | . 40 54 21 19 17 44 7 Move 1773 | 44 131 530 165 80 365 418 40 Hop . | . . . . . . . . Pick Up 20 | 2 2 . 4 1 8 2 1 Fast Attach 14 | 4 . 2 3 . . 5 . Attach 4 | . . . 2 . 2 . . Detach . | . . . . . . . . Swap 11 | . 1 . 3 . 4 3 . Drop 20 | 1 2 . 5 1 5 5 1 Fire 74 | . 7 6 11 3 37 10 . Melee 19 | . . . . . 2 15 2 Ram 1 | . . . 1 . . . . Kick . | . . . . . . . . Crush . | . . . . . . . . Escape Stasis 8 | . . . . . . 8 . Rewire . | . . . . . . . . Trap . | . . . . . . . . Miscellaneous 44 | . 2 . . 7 35 . . Route ------- -11/Scrapyard -10/Materials (discovered 3 exits: *Mat / [*Min x2]) -10/Mines (discovered 2 exits: *Mat / *Exi) -9/Materials -9/Mines -8/Materials (discovered 3 exits: *Fac x3) -7/Factory (discovered 4 exits: *Fac x4) -6/Factory History --------- Turn | Location | Event 15 | -11/Scrapyard | Upgraded with Utility slot (x2) 15 | -11/Scrapyard | Upgraded with Weapon slot (x1) 18 | -11/Scrapyard | Discovered new exit (range 15) 45 | -11/Scrapyard | Entered Materials 134 | -10/Materials | Discovered new exit (range 8) 198 | -10/Materials | Discovered new exit (range 8) 218 | -10/Materials | Discovered new exit (range 15) 218 | -10/Materials | Entered Mines 218 | -10/Mines | Accompanied by 1 ally 310 | -10/Mines | Escorted by a lone wolf Derelict 310 | -10/Mines | Build established: Mutant 376 | -10/Mines | Assisted by bots powering up and referring to "LRC-V3" 549 | -10/Mines | Found a damaged Exp. Sensor Array with a note attached 552 | -10/Mines | Found Prototype Device 552 | -10/Mines | Identified Exp. Sensor Array 626 | -10/Mines | Deemed a non-threat by the Exiles lab entrance 626 | -10/Mines | Discovered new exit (range 5) 629 | -10/Mines | Identified exit to Exiles 674 | -10/Mines | Build established: Commander-Mutant 711 | -10/Mines | Discovered new exit (range 3) 713 | -10/Mines | Identified exit to Materials 735 | -10/Mines | Entered Materials 735 | -9/Materials | Accompanied by 5 allies 737 | -9/Materials | Reached level 2 741 | -9/Materials | Upgraded with Propulsion slot (x1) 840 | -9/Materials | Reached level 3 861 | -9/Materials | Discovered new exit (range 17) 879 | -9/Materials | Identified exit to Mines 953 | -9/Materials | Entered Mines 953 | -9/Mines | Accompanied by 4 allies 954 | -9/Mines | Learned location of Storage (-9) 1002 | -9/Mines | Met a Derelict bent on vengeance 1047 | -9/Mines | Discovered new exit (range 9) 1056 | -9/Mines | Identified exit to Materials 1062 | -9/Mines | Entered Materials 1062 | -8/Materials | Accompanied by 4 allies 1064 | -8/Materials | Reached level 4 1104 | -8/Materials | Reached level 5 1119 | -8/Materials | Upgraded with Propulsion slot (x1) 1120 | -8/Materials | Garrison activated, responded to threat 1157 | -8/Materials | Reached level 6 1195 | -8/Materials | Build established: Mutant 1286 | -8/Materials | Destroyed 8 combat bots 1286 | -8/Materials | Reached level 7 1543 | -8/Materials | Identified exit to Factory 1558 | -8/Materials | Build established: Hacker-Mutant 1575 | -8/Materials | Entered Factory 1577 | -7/Factory | Reached level 8 1628 | -7/Factory | Identified exit to Factory 1628 | -7/Factory | Reached level 9 1635 | -7/Factory | Upgraded with Utility slot (x1) 1700 | -7/Factory | Fabricated Gauss Rifle? 1899 | -7/Factory | Core integrity fell below 50% 1969 | -7/Factory | Core integrity fell below 20% 2008 | -7/Factory | Entered another Factory area 2009 | -6/Factory | Core integrity fell below 50% 2009 | -6/Factory | Core integrity fell below 20% 2010 | -6/Factory | Reached level 10 2023 | -6/Factory | Destroyed 8 combat bots 2041 | -6/Factory | Destroyed by Y-54 Guardian with Gatling Laser Last Messages --------------- 01998_ Destroyed Aluminum Leg. 01998_ U-05 Engineer lays Concrete. 01999_ K-01 Serf collects debris. 01999_ U-05 Engineer lays Concrete. 02002_ G-47 Trooper destroyed. 02002_ K-01 Serf collects debris. 02002_ U-05 Engineer lays Concrete. 02002_ U-05 Engineer builds a Wall. 02003_ U-05 Engineer lays Concrete. 02007_ K-01 Serf collects debris. 02007_ U-05 Engineer lays Concrete. LOCATION=FACTORY GOAL=ESCAPE 02010_ Reached level 10. 02025_ Dropped Imp. EM Pulse Cannon. 02025_ Acquired Gauss Rifle. 02038_ Sneak attack on Y-54 Guardian. 02038_ Imp. Light Armor Plating severed. 02040_ Y-54 Guardian suffers critical hit. 02040_ Destroyed Flak Gun. Map ----- +----------------------------------------------------+ | ???????????????????????????? ???????????????????? | | ???????????????????????????? ???????????????????? | | ???????????????????????????? ???????????????????? | | ???????????????????????????# #??????????????????? | | ???????????????????????Y???# #??????????????????? | | ???????????????????????????# #??????????????????? | | ???????????????????????????# #??????????????????? | | ???????????????????????????# #??????????????????? | | ???????????????????????????# #??????????????????? | | ???????????????????????##### #??????????????????? | | ???????????????????????# #??????????????????? | | ???????????????????????# ##############?????? | | ???????????????????????# # #?????? | | ???????????????????????# # ! #?????? | | ???????????????????????# # #?????? | | ???????????????????????# #! ! #?????? | | ???????????????????????# # #?????? | | ???????????????????????# # ! #?????? | | ???????????????????????# # #?????? | | ???????????????????????# # #?????? | | ???????????????????????# + #?????? | | ???????????????????????# # #?????? | | ??????????????????###### #[ #?????? | | ?????????? # #?????? | | ???????????# ###########Y################?????? | | ???????????????????#[ @! #??????????????? | | ???????????????????# """""" #??????????????? | | ???????????????????# """""" #??????????????? | | ???????????????????# """""" #??????????????? | | ???????????????????# """""" #??????????????? | | ???????????????????# #??????????????? | | ???????????????????# ]"""""" #??????????????? | | ???????????????????# """""" #??????????????? | | ???????????????????# """""" ????????????????? | | ???????????????????# """""" ????????????????? | | ???????????????????# ?????????????????? | | ???????????????????############?????????????????? | | | | | | | | | | | | | | | | | | | | | | | | | | | +----------------------------------------------------+ Best States ------------- Heat Dissipation 61 Energy Generation 12 Energy Capacity 315 Matter Stores 400 Matter Capacity 400 Sight Range 18 Robot Scan Range 34 Terrain Scan Density 10 Armor Coverage 225 Resistance: KI 10 Resistance: TH 10 Resistance: EX 15 Evasion (%) 54 Offensive Hacking 25 Item Schematics ----------------- Chainsword | -8/Materials | Scanalyzed Imp. EM Pulse Cannon | -8/Materials | Scanalyzed Robot Schematics ------------------ None Fabricated ------------ Gauss Rifle | x2 | -7/Factory | Preloaded Alien Tech Used ----------------- None Achievements -------------- None Challenges ------------ None RPGLIKE | -11 -10 -10 -9 -9 -8 -7 -6 --------- Run | Scr Mat Min Mat Min Mat Fac Fac Levels Raised 9 | . . . 2 . 4 2 1 XP Earned 17975 | 3000 185 1100 2099 832 6180 3079 1500 XP Spent 14930 | 2900 . . 2950 . 6005 3075 . Upgrades 49 | 9 . . 12 . 21 7 . Propulsion Slot 2 | . . . 1 . 1 . . Utility Slot 3 | 2 . . . . . 1 . Weapon Slot 1 | 1 . . . . . . . Core Integrity 8 | . . . . . 8 . . Heat Dissipation 6 | . . . 6 . . . . Energy Storage 1 | . . . . . 1 . . Matter Storage 2 | . . . . . 2 . . Mass Support 1 | . . . 1 . . . . Inventory Capacity 4 | 1 . . 2 . 1 . . Sight Range 2 | . . . 1 . . 1 . Sensor Range 2 | . . . . . . 2 . Ranged Accuracy 1 | . . . . . 1 . . Melee Accuracy 6 | . . . . . 4 2 . Hack Attack % 3 | 1 . . 1 . 1 . . KI Resistance % 2 | 1 . . . . 1 . . TH Resistance % 2 | 1 . . . . 1 . . EX Resistance % 3 | 2 . . . . . 1 . Protomatter Created 362 | . 43 3 . 35 218 63 . Integrity Restored 893 | . 9 . . 143 741 . . Core 816 | . 7 . . 143 666 . . Parts 77 | . 2 . . . 75 . . Protomatter Decayed 26 | . . . 26 . . . . Game ------ Seed ArmoredDefenseAutohacker Manual? 0 Play Time 00:27:38 Cumulative 59.6 hours Start 2020.07.28 @ 02:06:24 End 2020.07.28 @ 02:34:16 Sessions 1 Manual Loads 0 Difficulty Rogue Special Mode Winter2019/RPGLIKE Game No. 87 Rogue 87 Adventurer 0 Explorer 0 Win Type - Total 0 Types 0/0/0/0/0/0/0 Lore% 34 Gallery% 43 Achievement% 35 Wizard Run 0 Options --------- ASCII 0 Keyboard 0 Movement Mouse Keybinds 0 Fullscreen 2 Font 18/X11 Map View 76x50 Tactical HUD 1 Map Filters NONE Filters NONE Steam 1 RUN: 8733d55d-3f09-4597-b11b-19913c1a856d